bitfinex/quotes_SOLUSD_20250924
["timestamp","ask_amount","ask_price","bid_price","bid_amount"]
[1758691796747,26.0,209.22,209.19,0.66]
[1758691796942,26.0,209.22,209.2,38.06]
[1758691797651,26.0,209.22,209.2,37.4]
[1758691798234,26.0,209.22,209.2,38.06]
[1758691798554,26.0,209.22,209.2,37.4]
[1758691799428,26.0,209.22,209.2,38.06]
[1758691800269,26.0,209.22,209.2,37.4]
[1758691800638,30.77974531,209.22,209.2,37.4]
[1758691801326,30.77974531,209.22,209.21,37.4]
[1758691801525,0.68,209.21,209.15,0.86]
[1758691801730,0.68,209.21,209.16,37.4]
[1758691801933,0.68,209.21,209.16,38.06]
[1758691802240,26.0,209.22,209.18,13.59559401]
[1758691802641,26.0,209.22,209.19,0.66]
[1758691802839,26.0,209.22,209.2,38.06]
[1758691803441,31.45969753,209.22,209.21,37.4]
[1758691805451,26.0,209.2,209.19,37.4]
[1758691806044,26.0,209.21,209.19,37.4]
[1758691807748,30.77989784,209.21,209.17,0.66]
[1758691807953,4.77989784,209.21,209.18,37.4]
[1758691808139,26.0,209.22,209.18,38.06]
[1758691809154,26.0,209.25,209.19,0.66]
[1758691810261,30.77918496,209.25,209.19,0.66]
[1758691810758,0.68,209.24,209.18,42.18045483]
[1758691811257,0.68,209.23,209.19,37.4]
[1758691811435,0.68,209.22,209.2,37.4]
[1758691812663,5.45988623,209.21,209.2,37.4]
[1758691813361,4.77988623,209.21,209.2,37.4]
[1758691813541,4.77988623,209.21,209.16,0.66]
[1758691813743,26.0,209.2,209.19,37.4]
[1758691813933,26.0,209.2,209.18,37.4]
[1758691815167,5.46965777,209.22,209.15,18.57683043]
[1758691815168,26.69,209.19,209.15,0.2]
[1758691815470,0.69,209.18,209.16,37.4]
[1758691815683,4.7808003,209.17,209.15,0.2]
[1758691815975,4.7808003,209.17,209.16,37.4]
[1758691816571,4.7808003,209.17,209.15,0.2]
[1758691816754,5.4708003,209.17,209.15,37.6]
[1758691818177,5.4708003,209.17,209.15,0.2]
[1758691818346,5.4708003,209.17,209.15,37.6]
[1758691818743,5.4708003,209.17,209.15,0.2]
[1758691818744,0.69,209.16,209.15,0.2]
[1758691819753,5.47102887,209.16,209.15,0.2]
[1758691820965,26.0,209.18,209.15,0.2]
[1758691821167,26.0,209.18,209.15,0.86]
[1758691821978,4.78102887,209.16,209.15,0.2]
[1758691822283,30.78102887,209.16,209.15,0.2]
[1758691822659,26.0,209.16,209.15,0.2]
[1758691824984,26.71,209.16,209.15,0.2]
[1758691825173,26.0,209.16,209.15,0.2]
[1758691825784,30.78102887,209.16,209.15,0.2]
[1758691826876,30.78102887,209.16,209.15,1.39913403]
[1758691829050,26.0,209.16,209.15,2.05913403]
[1758691831059,26.0,209.18,209.15,2.05913403]
[1758691831257,26.0,209.18,209.15,1.39913403]
[1758691831455,26.0,209.18,209.15,2.05913403]
[1758691832081,30.78065867,209.18,209.15,2.05913403]
[1758691832277,30.78065867,209.18,209.16,0.66]
[1758691833673,26.0,209.17,209.15,1.39913403]
[1758691833873,26.0,209.17,209.15,2.05913403]
[1758691834183,26.0,209.17,209.16,0.66]
[1758691834381,26.0,209.17,209.15,1.39913403]
[1758691834579,26.0,209.17,209.15,2.05913403]
[1758691835313,9.56194012,209.2,209.16,0.66]
[1758691835489,4.77962293,209.23,209.17,37.4]
[1758691835661,9.56104995,209.23,209.18,0.66]
[1758691835863,26.0,209.2,209.18,0.66]
[1758691836394,26.0,209.2,209.19,0.66]
[1758691837565,26.71,209.2,209.15,1.39913403]
[1758691837769,26.71,209.2,209.18,37.4]
[1758691838989,4.78034322,209.19,209.15,1.39913403]
[1758691839199,26.0,209.18,209.16,38.04]
[1758691839499,26.0,209.17,209.16,37.38]
[1758691839674,26.71,209.17,209.16,37.38]
[1758691840397,26.0,209.17,209.16,37.38]
[1758691840980,30.7808003,209.17,209.16,37.38]
[1758691841395,31.4908003,209.17,209.15,1.39913403]
[1758691841578,26.71,209.16,209.15,1.39913403]
[1758691842601,41.09262579,209.16,209.15,1.39913403]
[1758691843098,45.87365466,209.16,209.15,1.39913403]
[1758691844287,49.08516393,209.16,209.15,1.39913403]
[1758691844476,49.08534798,209.16,209.15,1.39913403]
[1758691844887,45.16365466,209.16,209.15,1.39913403]
[1758691845081,45.87365466,209.16,209.15,1.39913403]
[1758691845306,49.08471462,209.16,209.15,1.39913403]
[1758691847602,49.08471462,209.16,209.15,1e-08]
[1758691848776,48.37471462,209.16,209.15,1e-08]
[1758691848974,48.37332358,209.16,209.15,1e-08]
[1758691849195,45.87365466,209.16,209.15,1e-08]
[1758691849509,4.78102887,209.16,209.15,0.66000001]
[1758691849877,6.69852845,209.16,209.15,0.66000001]
[1758691851070,6.69852845,209.16,209.15,1e-08]
[1758691851498,7.41852845,209.16,209.15,1e-08]
[1758691851682,6.69852845,209.16,209.15,1e-08]
[1758691856906,6.69852845,209.16,209.15,0.68000001]
[1758691857087,4.78060196,209.18,209.15,0.68000001]
[1758691857503,26.0,209.16,209.15,0.68000001]
[1758691858203,4.78031312,209.2,209.15,0.68000001]
[1758691858381,26.0,209.19,209.15,0.68000001]
[1758691858581,3.21465836,209.25,209.15,0.68000001]
[1758691858582,16.72647977,209.25,209.15,0.68000001]
[1758691858806,19.94150732,209.25,209.15,0.68000001]
[1758691859096,13.59559401,209.22,209.16,13.59559401]
[1758691859299,26.0,209.22,209.17,0.68]
[1758691859682,26.0,209.21,209.17,0.68]
[1758691860388,26.0,209.21,209.18,0.68]
[1758691860590,26.0,209.21,209.19,0.68]
[1758691860791,26.0,209.2,209.16,18.37660249]
[1758691861414,26.0,209.2,209.17,0.68]
[1758691863610,2.49945142,209.23,209.17,42.84073105]
[1758691863792,2.49945142,209.23,209.18,0.68]
[1758691863981,26.0,209.2,209.18,0.68]
[1758691865195,26.0,209.2,209.18,5.46056089]
[1758691865388,26.0,209.2,209.19,0.68]
[1758691866014,2.49945142,209.23,209.19,3.06260398]
[1758691866200,7.99748294,209.27,209.2,0.68]
[1758691866396,26.0,209.24,209.2,0.68]
[1758691866906,0.72,209.23,209.16,0.68]
[1758691867222,0.72,209.23,209.16,20.64]
[1758691867223,26.0,209.2,209.16,20.64]
[1758691867586,26.0,209.2,209.17,0.68]
[1758691868009,18.6458423,209.22,209.18,0.68]
[1758691868213,26.0,209.19,209.18,0.68]
[1758691868717,26.0,209.19,209.16,19.96]
[1758691868900,26.0,209.19,209.17,0.68]
[1758691869411,30.78041004,209.19,209.16,37.38]
[1758691869599,26.0,209.19,209.16,38.06]
[1758691869805,26.0,209.19,209.17,0.68]
[1758691871109,26.0,209.19,209.16,37.38]
[1758691871411,26.0,209.18,209.16,37.38]
[1758691871602,26.0,209.18,209.16,38.06]
[1758691872098,26.0,209.18,209.16,0.68]
[1758691872411,26.0,209.18,209.16,38.06]
[1758691873118,30.78058694,209.18,209.16,38.06]
[1758691873706,30.78058694,209.18,209.16,38.1]
[1758691873892,26.0,209.18,209.16,38.1]
[1758691874094,26.0,209.18,209.16,38.08]
[1758691874810,26.0,209.19,209.17,0.72]
[1758691875011,26.0,209.19,209.16,37.36]
[1758691875214,26.0,209.19,209.17,37.36]
[1758691876018,30.78034517,209.19,209.17,37.36]
[1758691876213,4.78034517,209.19,209.17,37.36]
[1758691876412,26.0,209.18,209.17,37.36]
[1758691877729,26.0,209.16,209.15,1e-08]
[1758691877902,26.0,209.16,209.15,37.36000001]
[1758691879920,26.0,209.16,209.15,38.08000001]
[1758691881318,30.78102887,209.16,209.15,37.36000001]
[1758691881504,26.0,209.16,209.15,38.08000001]
[1758691881708,0.72,209.16,209.15,1e-08]
[1758691882002,0.72,209.16,209.12,0.2]
[1758691882003,21.47516656,209.16,209.12,0.2]
[1758691882207,8.31125675,209.15,209.05,17.36]
[1758691882402,26.0,209.12,209.05,17.36]
[1758691882597,0.72,209.11,209.05,17.36]
[1758691882806,0.72,209.1,209.05,17.36]
[1758691883016,0.72,209.09,209.05,17.36]
[1758691883223,26.0,209.06,209.05,17.36]
[1758691883807,30.78331579,209.06,209.05,17.36]
[1758691884014,4.78331579,209.06,209.05,17.36]
[1758691885427,4.78331579,209.06,209.05,0.2]
[1758691886130,26.0,209.05,209.04,0.2]
[1758691886312,26.0,209.04,208.99,0.2]
[1758691886630,26.63,209.04,208.99,0.2]
[1758691887006,26.0,209.04,208.99,0.92]
[1758691887415,0.63,209.04,208.99,0.92]
[1758691887615,26.0,209.02,208.99,0.92]
[1758691887814,26.0,209.02,209.01,0.92]
[1758691888235,4.78291985,209.08,209.01,0.92]
[1758691888531,4.78291985,209.08,209.02,0.72]
[1758691888827,27.91851123,209.05,209.02,0.72]
[1758691889002,27.91851123,209.05,209.03,0.72]
[1758691889823,26.0,209.06,209.03,0.72]
[1758691890022,40.38814417,209.06,209.03,0.72]
[1758691890937,30.78333878,209.06,209.01,37.58]
[1758691891316,30.78333878,209.06,209.02,0.72]
[1758691892025,30.78333878,209.06,209.01,37.58]
[1758691892328,26.0,209.04,209.01,0.2]
[1758691892934,4.78400229,209.03,209.01,0.2]
[1758691893712,0.63,209.02,209.01,0.2]
[1758691894813,5.41423117,209.02,209.01,0.2]
[1758691895354,5.41423117,209.02,209.01,1e-08]
[1758691895838,26.0,209.0,208.99,0.2]
[1758691896333,26.63,209.0,208.99,1e-08]
[1758691896540,26.0,209.0,208.99,1e-08]
[1758691897043,31.41468899,209.0,208.99,1e-08]
[1758691897739,30.78468899,209.0,208.99,1e-08]
[1758691897937,4.78468899,209.0,208.99,1e-08]
[1758691899116,26.0,209.02,208.99,0.72000001]
[1758691899537,26.0,209.02,209.0,0.72]
[1758691899816,26.0,209.02,209.01,0.72]
[1758691900016,26.0,209.02,208.99,0.72000001]
[1758691900318,26.0,209.04,209.0,0.72]
[1758691900716,26.0,209.03,209.0,0.72]
[1758691901124,4.78423117,209.02,209.0,0.72]
[1758691901829,30.78400524,209.03,209.01,0.72]
[1758691904332,30.78400524,209.03,208.99,1e-08]
[1758691904537,30.78400524,209.03,209.0,0.72]
[1758691905538,26.0,209.03,209.01,0.72]
[1758691905946,26.0,209.03,208.99,1e-08]
[1758691906119,26.0,209.03,209.0,0.72]
[1758691906429,30.78401234,209.03,209.01,0.72]
[1758691906633,26.0,209.06,209.02,0.72]
[1758691907337,26.0,209.06,208.99,1e-08]
[1758691907520,26.0,209.06,209.0,0.72]
[1758691907720,4.78331579,209.06,209.0,0.72]
[1758691908025,26.0,209.03,209.0,0.72]
[1758691909342,4.78423117,209.02,209.0,0.72]
[1758691910245,26.0,209.03,208.99,1e-08]
[1758691910444,26.0,209.03,208.99,0.67000001]
[1758691910741,0.63,209.05,208.99,0.67000001]
[1758691910742,26.63,209.05,208.99,0.67000001]
[1758691911246,26.0,209.02,208.99,0.67000001]
[1758691911443,26.0,209.01,208.99,0.67000001]
[1758691912746,26.0,209.02,209.0,0.67]
[1758691913234,26.0,209.04,209.0,0.67]
[1758691913948,30.78383231,209.04,208.99,1e-08]
[1758691914145,30.78383231,209.04,209.0,0.67]
[1758691914451,30.78383231,209.04,209.01,0.67]
[1758691914660,5.41383231,209.04,208.99,1e-08]
[1758691914834,0.63,209.03,208.99,1e-08]
[1758691915750,4.78423117,209.02,208.99,0.67000001]
[1758691916052,164.35469424,209.09,209.0,0.67]
[1758691916053,30.7835446,209.05,209.0,0.67]
[1758691916429,30.7835446,209.05,209.01,0.67]
[1758691916751,26.0,209.04,209.01,0.67]
[1758691916955,30.78381516,209.04,208.99,1e-08]
[1758691917159,30.78381516,209.04,209.0,0.67]
[1758691917361,30.78381516,209.04,209.01,0.67]
[1758691919737,26.0,209.04,209.02,0.67]
[1758691920136,26.0,209.04,209.03,0.67]
[1758691920750,26.0,209.04,209.01,0.67]
[1758691920944,26.0,209.04,209.02,0.67]
[1758691921361,133.9,209.08,209.03,0.67]
[1758691921536,133.9,209.08,209.04,37.38]
[1758691921741,133.9,209.08,209.05,0.67]
[1758691921742,26.0,209.06,209.05,0.67]
[1758691921961,4.78240135,209.1,209.05,0.67]
[1758691922171,12.58465209,209.13,209.05,0.67]
[1758691922172,4.78214433,209.12,209.05,0.67]
[1758691922340,26.0,209.08,209.05,0.67]
[1758691923168,43.87554583,209.11,209.06,15.11992837]
[1758691923346,30.78173771,209.13,209.07,5.453087]
[1758691923544,30.78173771,209.13,209.08,0.67]
[1758691923738,4.78173771,209.13,209.08,0.67]
[1758691924066,26.0,209.12,209.09,0.67]
[1758691924363,4.78173771,209.13,209.09,0.67]
[1758691924547,26.0,209.12,209.09,0.67]
[1758691924749,26.0,209.12,209.09,38.05]
[1758691926042,26.0,209.11,209.09,38.05]
[1758691926362,4.78211385,209.12,209.09,38.05]
[1758691927065,4.78211385,209.12,209.09,0.67]
[1758691927360,4.78211385,209.12,209.1,37.38]
[1758691927563,26.0,209.11,209.1,37.38]
[1758691927762,26.63,209.11,209.09,37.38]
[1758691927963,26.0,209.11,209.04,0.67]
[1758691928160,26.0,209.09,209.06,37.38]
[1758691928361,26.0,209.09,209.06,38.05]
[1758691929268,30.78281423,209.09,209.06,38.05]
[1758691929469,30.78235636,209.11,209.07,0.67]
[1758691929657,30.78235636,209.11,209.08,0.67]
[1758691929852,30.78235636,209.11,209.06,37.38]
[1758691930173,26.0,209.1,209.07,0.67]
[1758691930554,4.78235636,209.11,209.07,0.67]
[1758691930773,26.0,209.1,209.06,37.38]
[1758691930952,0.63,209.09,209.07,37.36]
[1758691931656,20.58408753,209.11,209.07,37.36]
[1758691931861,26.0,209.08,209.07,37.36]
[1758691932055,26.0,209.08,209.05,0.67]
[1758691932272,26.0,209.08,209.06,38.03]
[1758691932644,26.0,209.08,209.07,0.67]
[1758691933464,30.78218132,209.11,209.07,0.67]
[1758691933663,30.78218132,209.11,209.08,0.67]
[1758691934478,30.78218132,209.11,209.06,37.36]
[1758691934664,26.0,209.1,209.07,0.67]
[1758691934860,26.0,209.1,209.01,13.59559401]
[1758691935056,0.63,209.09,209.03,0.67]
[1758691936074,20.58270865,209.11,209.03,0.67]
[1758691936585,26.0,209.08,209.03,5.45399582]
[1758691936754,26.0,209.08,209.04,0.67]
[1758691936955,26.0,209.08,209.05,0.67]
[1758691937375,26.0,209.08,209.05,38.03]
[1758691938158,4.7826711,209.09,209.05,38.03]
[1758691939282,26.0,209.06,209.02,0.67]
[1758691939484,26.0,209.06,209.03,37.36]
[1758691939788,26.0,209.06,209.03,38.03]
[1758691939967,26.0,209.06,209.04,0.67]
[1758691940162,26.0,209.06,209.05,4.7835446]
[1758691940478,26.0,209.06,209.05,5.4535446]
[1758691940652,30.78231562,209.11,209.05,5.4535446]
[1758691940856,30.78231562,209.11,209.06,0.72]
[1758691941079,31.41231562,209.11,209.06,0.72]
[1758691941385,31.41231562,209.11,209.06,38.08]
[1758691941680,26.0,209.09,209.07,0.72]
[1758691941875,26.0,209.09,209.05,0.72]
[1758691942069,26.0,209.09,209.06,37.36]
[1758691942267,26.0,209.09,209.06,38.08]
[1758691942779,26.0,209.09,209.06,37.36]
[1758691942963,26.0,209.09,209.06,38.08]
[1758691943865,26.0,209.09,209.07,0.72]
[1758691944067,4.78203363,209.12,209.08,0.72]
[1758691944277,26.0,209.11,209.08,0.72]
[1758691944592,26.0,209.11,209.06,37.36]
[1758691944895,26.0,209.1,209.07,37.36]
[1758691945486,26.0,209.11,209.08,0.72]
[1758691945685,26.0,209.11,209.09,0.72]
[1758691947089,2.50051508,209.18,209.1,0.72]
[1758691947264,3.21825516,209.18,209.11,53.33950997]
[1758691947461,5.41011472,209.2,209.12,0.72]
[1758691947663,26.0,209.17,209.12,0.72]
[1758691947903,26.0,209.17,209.13,0.72]
[1758691948472,0.63,209.19,209.13,0.72]
[1758691948793,26.0,209.17,209.13,0.72]
[1758691949371,4.7809461,209.17,209.13,0.72]
[1758691949588,26.0,209.16,209.13,0.72]
[1758691949793,26.0,209.16,209.14,0.72]
[1758691949994,26.0,209.17,209.15,38.08]
[1758691950301,30.78080435,209.17,209.15,37.36]
[1758691950877,5.41080435,209.17,209.11,14.31559401]
[1758691951083,26.0,209.14,209.12,37.36]
[1758691951390,26.0,209.14,209.12,38.08]
[1758691951598,26.0,209.14,209.13,37.34]
[1758691952677,30.78148608,209.14,209.12,0.72]
[1758691952877,26.0,209.14,209.12,0.72]
[1758691953085,26.0,209.14,209.13,37.34]
[1758691953881,26.0,209.14,209.12,0.72]
[1758691953882,26.0,209.13,209.07,13.59559401]
[1758691954099,26.0,209.13,209.08,38.06]
[1758691954300,26.0,209.11,209.08,37.34]
[1758691954474,26.0,209.11,209.06,13.59559401]
[1758691954798,26.0,209.11,209.09,0.72]
[1758691956178,26.0,209.11,209.1,37.34]
[1758691957002,30.78217206,209.11,209.1,37.34]
[1758691957296,0.63,209.14,209.1,37.34]
[1758691957504,26.0,209.13,209.1,37.34]
[1758691957800,26.0,209.12,209.1,37.34]
[1758691957989,26.0,209.12,209.11,0.72]
[1758691958172,4.78160983,209.14,209.1,37.34]
[1758691958378,26.0,209.11,209.1,38.06]
[1758691958583,26.0,209.11,209.1,37.34]
[1758691958780,26.0,209.12,209.1,37.34]
[1758691959778,30.78212406,209.12,209.1,37.34]
[1758691959991,26.63,209.11,209.1,37.34]
[1758691960408,29.85040209,209.11,209.1,37.34]
[1758691960621,29.85040209,209.11,209.0,4.78456438]
[1758691960783,29.85040209,209.1,208.99,0.72000001]
[1758691960982,26.0,209.07,209.0,32.14]
[1758691961212,26.63,209.07,209.0,32.14]
[1758691961512,0.63,209.06,209.0,32.86]
[1758691961892,26.0,209.03,209.0,32.86]
[1758691962203,26.0,209.03,209.01,0.72]
[1758691962392,26.0,209.03,209.0,32.14]
[1758691963086,26.0,209.03,209.0,32.86]
[1758691963481,26.0,209.03,209.0,32.14]
[1758691963699,0.63,209.02,209.0,32.14]
[1758691964711,26.0,209.01,209.0,32.14]
[1758691964910,26.63,209.01,209.0,32.14]
[1758691965110,31.41446007,209.01,209.0,32.14]
[1758691965416,26.0,209.0,208.99,1e-08]
[1758691966798,30.78468899,209.0,208.99,1e-08]
[1758691967704,31.41468899,209.0,208.99,1e-08]
[1758691967911,30.78468899,209.0,208.99,1e-08]
[1758691969417,4.78468899,209.0,208.99,1e-08]
[1758691970447,5.41468899,209.0,208.99,1e-08]
[1758691971310,4.78468899,209.0,208.99,1e-08]
[1758691971895,133.9,209.01,208.99,0.69000001]
[1758691972294,133.9,209.01,209.0,0.69]
[1758691975325,30.78427244,209.02,209.0,0.69]
[1758691975511,26.0,209.02,208.99,1e-08]
[1758691975709,26.0,209.01,208.99,1e-08]
[1758691977325,30.78456127,209.01,208.99,1e-08]
[1758691978509,4.78468899,209.0,208.99,1e-08]
[1758691979022,26.0,209.01,208.99,0.69000001]
[1758691979213,30.78451981,209.01,208.99,0.69000001]
[1758691980407,26.0,209.01,208.99,1e-08]
[1758691980603,26.0,209.01,209.0,0.69]
[1758691981325,26.0,209.03,209.0,0.69]
[1758691981518,26.0,209.02,208.99,1e-08]
[1758691981831,26.0,209.02,209.0,0.69]
[1758691982020,26.0,209.02,208.99,1e-08]
[1758691982199,26.0,209.02,209.0,0.69]
[1758691982827,30.78430133,209.02,209.0,0.69]
[1758691983232,30.78430133,209.02,208.99,1e-08]
[1758691983438,30.78430133,209.02,208.99,0.69000001]
[1758691984522,30.78430133,209.02,209.0,0.69]
[1758691985334,30.78430133,209.02,208.99,1e-08]
[1758691985504,30.78430133,209.02,208.99,0.69000001]
[1758691986629,26.0,209.01,208.99,0.69000001]
[1758691989735,26.0,209.01,208.99,1e-08]
[1758691989915,26.0,209.01,208.99,0.69000001]
[1758691990237,26.0,209.01,209.0,0.69]
[1758691990710,26.0,209.01,208.99,1e-08]
[1758691990912,26.0,209.01,208.99,0.69000001]
[1758691991406,26.0,209.01,209.0,0.69]
[1758691992139,0.63,209.01,208.99,1e-08]
[1758691992343,0.63,209.0,208.99,1e-08]
[1758691993412,5.41468899,209.0,208.99,1e-08]
[1758691996442,5.41468899,209.0,208.98,0.2]
[1758691996443,7.33393665,209.0,208.98,1e-08]
[1758691998421,26.0,208.98,208.97,1e-08]
[1758691998622,26.0,208.97,208.94,0.2]
[1758691998925,26.63,208.97,208.94,0.2]
[1758691999645,26.0,208.89,208.8,0.87]
[1758691999833,26.63,208.88,208.8,0.87]
[1758692000026,0.63,208.87,208.8,0.87]
[1758692000435,26.0,208.83,208.81,0.66]
[1758692000830,26.0,208.83,208.82,0.66]
[1758692001033,4.78838657,208.84,208.82,0.66]
[1758692001241,26.0,208.83,208.75,13.59559401]
[1758692002245,4.78881333,208.82,208.75,18.3860048]
[1758692002444,4.78881333,208.82,208.75,4.79041079]
[1758692003325,4.78881333,208.82,208.76,0.66]
[1758692003537,26.0,208.79,208.76,0.66]
[1758692003731,26.0,208.79,208.74,8.54]
[1758692003732,26.0,208.79,208.77,0.66]
[1758692004031,26.0,208.8,208.78,0.66]
[1758692005328,26.0,208.81,208.79,0.66]
[1758692005521,26.0,208.8,208.79,0.66]
[1758692006339,26.0,208.81,208.79,0.66]
[1758692006651,26.0,208.8,208.77,4.7899478]
[1758692007152,26.0,208.8,208.78,0.66]
[1758692007654,2.50264637,208.83,208.78,0.66]
[1758692007859,26.0,208.81,208.78,0.66]
[1758692008228,26.0,208.81,208.79,0.66]
[1758692008551,26.0,208.81,208.78,0.66]
[1758692010256,24.70203358,208.82,208.75,4.79024412]
[1758692010432,24.70203358,208.82,208.76,0.66]
[1758692011655,29.49101387,208.82,208.76,0.66]
[1758692012152,29.49101387,208.82,208.76,5.45015063]
[1758692013941,29.49101387,208.82,208.76,0.66]
[1758692014767,30.17101387,208.82,208.76,0.66]
[1758692015512,25.38203358,208.82,208.76,5.45018835]
[1758692015760,24.70203358,208.82,208.77,0.66]
[1758692016262,25.38203358,208.82,208.77,0.66]
[1758692016458,25.38203358,208.82,208.75,1.52983685]
[1758692016459,0.68,208.82,208.75,1.52983685]
[1758692016661,0.68,208.82,208.78,0.66]
[1758692016961,26.0,208.79,208.78,0.66]
[1758692017138,26.0,208.79,208.76,0.66]
[1758692017338,26.0,208.79,208.76,5.45014754]
[1758692019676,26.0,208.79,208.77,0.66]
[1758692020387,31.4688262,208.82,208.77,0.66]
[1758692020566,0.68,208.81,208.77,0.66]
[1758692020768,30.7888262,208.82,208.75,5.45041916]
[1758692020965,0.68,208.81,208.75,5.45041916]
[1758692022155,0.68,208.81,208.76,5.4501314]
[1758692022356,0.68,208.81,208.76,4.7901314]
[1758692022556,0.68,208.81,208.77,0.66]
[1758692024078,26.0,208.82,208.76,4.7901314]
[1758692024379,26.0,208.82,208.78,0.66]
[1758692024561,26.0,208.82,208.76,5.4501314]
[1758692024762,0.68,208.81,208.76,5.4501314]
[1758692024962,0.68,208.81,208.77,0.66]
[1758692025984,26.0,208.78,208.77,0.66]
[1758692026954,0.68,208.78,208.74,4.99045834]
[1758692027183,0.68,208.78,208.75,37.36]
[1758692027767,26.0,208.78,208.75,37.36]
[1758692028088,5.46939895,208.8,208.75,37.36]
[1758692028258,0.68,208.79,208.75,37.36]
[1758692028460,4.78939895,208.8,208.75,37.36]
[1758692028659,0.68,208.79,208.75,37.36]
[1758692029081,0.68,208.79,208.75,38.02]
[1758692029659,0.68,208.79,208.75,0.66]
[1758692029859,0.68,208.79,208.76,37.36]
[1758692031187,4.78958725,208.79,208.76,37.36]
[1758692031387,5.50958725,208.79,208.76,37.36]
[1758692032468,0.72,208.79,208.76,37.36]
[1758692032869,5.50951864,208.79,208.76,37.36]
[1758692033765,26.0,208.8,208.77,0.72]
[1758692034071,26.0,208.82,208.77,2.24983685]
[1758692034272,30.78885042,208.82,208.78,0.72]
[1758692034683,26.0,208.79,208.78,0.72]
[1758692038192,26.0,208.79,208.76,43.67994891]
[1758692038193,26.0,208.79,208.76,38.08]
[1758692038686,26.0,208.79,208.77,0.72]
[1758692039769,26.0,208.79,208.78,37.36]
[1758692040583,0.72,208.84,208.78,38.08]
[1758692040888,26.0,208.82,208.78,38.08]
[1758692041095,26.0,208.82,208.79,0.72]
[1758692041669,26.0,208.81,208.79,0.72]
[1758692042899,2.50242757,208.86,208.8,0.72]
[1758692043069,0.72,208.85,208.8,0.72]
[1758692043272,0.72,208.84,208.8,0.72]
[1758692043492,0.72,208.84,208.78,37.36]
[1758692043666,4.78881333,208.82,208.79,37.36]
[1758692043871,0.72,208.81,208.8,37.36]
[1758692044393,26.0,208.79,208.75,0.72]
[1758692044573,26.0,208.79,208.76,38.08]
[1758692045066,26.0,208.79,208.77,0.72]
[1758692045271,26.0,208.79,208.78,0.72]
[1758692045699,26.0,208.79,208.76,38.08]
[1758692045872,26.0,208.79,208.77,0.72]
[1758692046572,5.50881333,208.82,208.77,0.72]
[1758692046774,26.72,208.82,208.78,0.72]
[1758692047797,31.50890846,208.82,208.78,0.72]
[1758692047986,0.72,208.81,208.76,44.39996522]
[1758692048179,0.72,208.81,208.77,0.72]
[1758692049401,4.78924147,208.81,208.77,0.72]
[1758692049608,0.72,208.8,208.76,37.36]
[1758692049902,0.72,208.8,208.76,38.08]
[1758692050796,31.50883357,208.82,208.77,0.72]